bitfinex-derivatives/quotes_SOLF0:USTF0_20250110
["timestamp","ask_amount","ask_price","bid_price","bid_amount"]
[1736471296374,2.6827,186.39,186.3,12.40275897]
[1736471296580,12.40275897,186.37,186.29,5.62945258]
[1736471296880,12.40275897,186.37,186.29,8.31355258]
[1736471297078,12.40275897,186.37,186.29,5.62945258]
[1736471297276,2.6834,186.34,186.28,2.6842]
[1736471297581,2.6834,186.34,186.23,12.40275897]
[1736471297781,2.6834,186.34,186.27,2.6842]
[1736471298283,2.6834,186.34,186.28,2.6841]
[1736471298882,4.82,186.35,186.31,2.6837]
[1736471299380,4.82,186.35,186.28,2.6841]
[1736471299684,4.82,186.35,186.26,12.40275897]
[1736471299881,4.82,186.35,186.28,2.6841]
[1736471300079,4.82,186.35,186.26,12.40275897]
[1736471301086,4.82,186.35,186.3,2.6838]
[1736471301486,1.5358,186.38,186.26,12.40275897]
[1736471301487,4.2187,186.38,186.26,12.40275897]
[1736471301690,4.2187,186.38,186.27,1.5828]
[1736471302786,4.2187,186.38,186.33,2.6835]
[1736471303388,2.6829,186.37,186.32,2.6836]
[1736471303583,1.5358,186.38,186.25,12.40275897]
[1736471303784,12.40275897,186.37,186.25,12.40275897]
[1736471304089,12.40275897,186.37,186.28,2.6841]
[1736471304090,2.6834,186.34,186.28,2.6841]
[1736471305288,12.40275897,186.37,186.28,2.6841]
[1736471305486,12.40275897,186.37,186.17,4.6829]
[1736471305487,12.40275897,186.34,186.26,2.6844]
[1736471306389,2.6839,186.31,186.26,2.6844]
[1736471309685,12.40275897,186.34,186.21,12.40275897]
[1736471311387,17.22275897,186.34,186.21,12.40275897]
[1736471312290,2.6837,186.32,186.21,12.40275897]
[1736471312890,2.6837,186.32,186.26,2.6844]
[1736471314085,2.6837,186.32,186.27,2.6843]
[1736471315293,17.22275897,186.34,186.21,12.40275897]
[1736471315596,19.90625897,186.34,186.24,12.40275897]
[1736471315792,17.22275897,186.34,186.25,1.5778]
[1736471315987,2.6837,186.32,186.25,1.5778]
[1736471316190,17.22275897,186.34,186.25,1.5778]
[1736471316596,2.6837,186.32,186.25,4.2623]
[1736471316789,17.22275897,186.34,186.25,1.5778]
[1736471318094,2.6839,186.31,186.26,2.6844]
[1736471318791,15.08665897,186.31,186.26,2.6844]
[1736471318997,2.6841,186.3,186.24,2.6847]
[1736471319799,2.6841,186.29,186.24,2.6847]
[1736471320194,2.6841,186.29,186.19,1.6077]
[1736471320398,2.6841,186.29,186.25,2.6847]
[1736471321096,2.6843,186.28,186.2,5.60587586]
[1736471321398,12.40275897,186.31,186.2,5.60587586]
[1736471321599,2.6845,186.27,186.22,2.685]
[1736471321995,3.1973,186.3,186.19,1.6077]
[1736471322195,12.40275897,186.25,186.19,2.6854]
[1736471322390,12.40275897,186.22,186.13,29.45329728]
[1736471323095,12.40275897,186.22,186.1,90.76766591]
[1736471323300,2.6856,186.19,186.1,1.6076]
[1736471323596,15.08835897,186.19,186.11,5.63069736]
[1736471323803,19.88835897,186.19,186.11,5.63069736]
[1736471324201,19.88835897,186.19,186.13,2.6863]
[1736471324500,2.6858,186.17,186.12,5.63069736]
[1736471324696,17.20275897,186.19,186.13,2.6864]
[1736471326104,2.6857,186.18,186.13,2.6864]
[1736471326305,17.20275897,186.19,186.13,2.6864]
[1736471326603,17.20275897,186.19,186.1,1.6076]
[1736471326803,2.6858,186.17,186.12,2.6865]
[1736471327598,17.20275897,186.19,186.13,2.6864]
[1736471327599,2.6857,186.18,186.13,2.6864]
[1736471329606,2.6857,186.18,186.1,1.6076]
[1736471329805,2.6857,186.18,186.12,2.6865]
[1736471331599,17.20275897,186.19,186.12,2.6865]
[1736471331803,15.08875897,186.16,186.1,2.6867]
[1736471332706,2.6864,186.14,186.07,2.6872]
[1736471332907,12.40275897,186.16,186.04,1.5757]
[1736471333310,12.40275897,186.16,186.05,5.63979289]
[1736471333801,12.40275897,186.16,186.06,5.63979289]
[1736471334205,1.5754,186.15,186.04,1.5757]
[1736471334405,12.40275897,186.13,186.04,1.5757]
[1736471334803,12.40275897,186.13,186.06,2.6873]
[1736471335006,4.78,186.12,186.06,2.6873]
[1736471337008,2.6868,186.1,186.06,2.6873]
[1736471337416,2.6868,186.1,186.05,2.6875]
[1736471337714,7.4667,186.12,185.99,1.5454]
[1736471338107,4.78,186.12,185.99,1.5454]
[1736471338311,2.6867,186.11,186.06,2.6873]
[1736471339213,2.6867,186.11,185.99,1.5454]
[1736471339413,1.4943,186.13,186.04,12.40275897]
[1736471339610,1.5754,186.15,186.04,12.40275897]
[1736471339911,1.5754,186.15,186.05,5.63943079]
[1736471340620,1.5754,186.15,186.06,5.63943079]
[1736471340621,2.6864,186.14,186.06,5.63943079]
[1736471341114,2.6864,186.14,186.09,2.6869]
[1736471341321,12.40275897,186.14,186.07,5.63943079]
[1736471341519,12.40275897,186.11,186.07,5.63943079]
[1736471341912,12.40275897,186.11,185.99,13.94815897]
[1736471342422,2.6869,186.1,186.02,2.6879]
[1736471342624,2.6869,186.1,186.0,5.63975257]
[1736471343022,2.6869,186.1,186.01,5.63975257]
[1736471343624,2.6869,186.1,186.02,5.63975257]
[1736471343825,12.40275897,186.11,186.02,5.63975257]
[1736471344123,12.40275897,186.11,186.03,5.63975257]
[1736471344526,12.40275897,186.11,186.07,2.6871]
[1736471345021,12.40275897,186.14,186.1,2.6868]
[1736471345230,1.5754,186.15,186.05,12.40275897]
[1736471345429,1.5014,186.17,186.05,12.40275897]
[1736471345726,1.5014,186.17,186.13,2.6863]
[1736471347127,4.1873,186.17,186.13,2.6863]
[1736471348622,1.5842,186.18,186.08,12.40275897]
[1736471348829,12.40275897,186.19,186.08,12.40275897]
[1736471349030,4.76,186.21,186.08,13.98555897]
[1736471349330,2.6854,186.2,186.15,2.686]
[1736471350633,7.4453,186.21,186.1,5.64358387]
[1736471351121,7.4453,186.21,186.17,2.6858]
[1736471351323,15.08785897,186.22,186.11,5.64358387]
[1736471351535,19.84785897,186.22,186.11,18.04634284]
[1736471351723,19.84785897,186.22,186.18,2.6857]
[1736471352127,2.6849,186.24,186.12,5.64358387]
[1736471352334,6.404,186.25,186.14,12.40275897]
[1736471352731,6.404,186.25,186.15,1.5929]
[1736471352929,12.40275897,186.24,186.18,2.6857]
[1736471353432,12.40275897,186.24,186.15,1.5929]
[1736471353835,17.18275897,186.24,186.15,1.5929]
[1736471354637,2.685,186.23,186.18,2.6855]
[1736471355334,2.685,186.23,186.19,2.6855]
[1736471356735,2.685,186.23,186.18,2.6856]
[1736471357737,19.86755897,186.24,186.15,1.5929]
[1736471358631,19.86755897,186.24,186.18,2.6855]
[1736471358941,2.685,186.23,186.18,2.6855]
[1736471359141,17.18275897,186.24,186.15,1.5929]
[1736471359436,17.18275897,186.24,186.11,12.40275897]
[1736471359637,12.40275897,186.21,186.09,1.5439]
[1736471359832,4.78,186.24,186.09,1.5439]
[1736471359833,12.40275897,186.18,186.09,1.5439]
[1736471360036,12.40275897,186.18,186.12,2.6864]
[1736471360436,4.76,186.17,186.12,2.6864]
[1736471360939,4.76,186.17,186.06,29.45329728]
[1736471361140,1.4958,186.16,186.06,29.45329728]
[1736471361341,1.4958,186.16,186.05,12.40275897]
[1736471361541,2.6864,186.13,186.08,2.687]
[1736471363730,12.40275897,186.12,186.08,2.687]
[1736471365336,12.40275897,186.12,186.03,1.5439]
[1736471365540,12.40275897,186.15,186.05,12.40275897]
[1736471365745,1.4958,186.16,186.05,12.40275897]
[1736471366146,1.4958,186.16,186.03,1.5439]
[1736471366348,1.4958,186.16,186.05,12.40275897]
[1736471366942,17.16275897,186.18,186.05,12.40275897]
[1736471367146,12.40275897,186.18,186.14,2.6861]
[1736471367743,12.40275897,186.18,186.15,2.686]
[1736471369447,20.34485897,186.21,186.08,12.40275897]
[1736471369753,4.76,186.23,186.11,12.40275897]
[1736471370246,4.76,186.23,186.12,3.1217]
[1736471370441,4.76,186.23,186.12,8.80448605]
[1736471370945,4.76,186.23,186.19,2.6854]
[1736471371145,15.08755897,186.24,186.19,2.6854]
[1736471371537,12.40275897,186.24,186.19,2.6854]
[1736471371741,2.6849,186.23,186.19,2.6854]
[1736471373748,2.6851,186.22,186.17,2.6857]
[1736471376747,2.6853,186.21,186.17,2.6857]
[1736471377252,2.6853,186.21,186.16,2.6858]
[1736471377452,2.6851,186.23,186.12,3.1217]
[1736471378049,2.6851,186.23,186.13,5.67656573]
[1736471378551,2.6851,186.23,186.14,5.67656573]
[1736471379254,2.6851,186.23,186.18,2.6855]
[1736471380154,2.6851,186.23,186.16,2.6859]
[1736471380557,2.6851,186.22,186.16,2.6859]
[1736471382152,2.685,186.23,186.18,2.6857]
[1736471382347,12.40275897,186.24,186.18,2.6857]
[1736471382753,2.6851,186.23,186.18,2.6857]
[1736471383256,2.6851,186.22,186.18,2.6857]
[1736471383557,12.40275897,186.24,186.16,2.6859]
[1736471384162,2.6853,186.21,186.16,2.6859]
[1736471384560,12.40275897,186.21,186.08,12.40275897]
[1736471384756,12.40275897,186.18,186.09,5.67693035]
[1736471384955,12.40275897,186.15,186.09,5.67693035]
[1736471385260,2.6868,186.1,186.09,5.67693035]
[1736471385461,12.40275897,186.12,186.06,29.45329728]
[1736471386059,12.40275897,186.12,186.01,54.23801649]
[1736471386957,12.40275897,186.12,186.02,5.66419589]
[1736471387153,2.6873,186.07,186.02,5.66419589]
[1736471387354,2.6873,186.07,186.02,8.35199589]
[1736471387562,2.6873,186.07,186.03,5.66419589]
[1736471387761,12.40275897,186.12,186.03,5.66419589]
[1736471387961,2.6874,186.06,186.03,5.66419589]
[1736471388358,12.40275897,186.12,186.01,2.6881]
[1736471388960,12.40275897,186.09,186.02,5.66565923]
[1736471389156,12.40275897,186.06,186.02,5.66565923]
[1736471389463,2.6878,186.03,186.02,5.66565923]
[1736471389658,2.6878,186.03,185.96,2.6887]
[1736471390261,2.6878,186.03,185.97,5.66863687]
[1736471390763,2.6878,186.03,185.98,5.66863687]
[1736471390958,12.40275897,186.03,185.98,5.66863687]
[1736471391158,12.40275897,186.03,185.89,41.85605625]
[1736471391358,12.40275897,186.03,185.93,2.6893]
[1736471391566,2.6883,186.0,185.89,43.42365625]
[1736471391865,2.6883,186.0,185.94,5.65801653]
[1736471392059,2.6883,186.0,185.93,2.6893]
[1736471392259,2.6883,186.0,185.9,5.65801653]
[1736471392662,2.6883,186.0,185.91,5.65801653]
[1736471393068,2.6883,186.0,185.94,2.6891]
[1736471395067,2.6883,186.0,185.95,2.689]
[1736471395270,2.6884,185.99,185.89,13.97035897]
[1736471395568,12.40275897,186.0,185.9,5.64698726]
[1736471396268,12.40275897,186.0,185.87,5.64698726]
[1736471396462,12.40275897,185.97,185.87,5.64698726]
[1736471397063,12.40275897,185.97,185.86,1.6018]
[1736471397558,12.40275897,185.97,185.86,7.23725942]
[1736471398067,2.689,185.95,185.89,2.6898]
[1736471399272,2.689,185.95,185.86,1.6018]
[1736471399273,2.689,185.95,185.9,2.6897]
[1736471400275,4.74,186.01,185.86,1.6018]
[1736471400475,12.40275897,186.01,185.89,12.40275897]
[1736471400871,12.40275897,186.01,185.9,4.74]
[1736471401275,2.6883,186.0,185.94,2.689]
[1736471402068,12.40275897,186.01,185.95,2.689]
[1736471402373,15.63195897,186.04,185.92,12.40275897]
[1736471402679,15.63195897,186.04,185.92,13.96835897]
[1736471402980,12.40275897,186.01,185.92,5.61715043]
[1736471403173,12.40275897,186.01,185.92,8.30655043]
[1736471403569,12.40275897,186.01,185.92,2.6894]
[1736471403780,12.40275897,185.98,185.91,2.6896]
[1736471404373,2.6888,185.96,185.91,2.6896]
[1736471404778,12.40275897,185.98,185.92,2.6894]
[1736471405482,2.6887,185.97,185.91,2.6895]
[1736471405781,12.40275897,185.98,185.86,7.21895043]
[1736471405982,2.689,185.95,185.9,2.6896]
[1736471406281,15.09175897,185.95,185.86,7.21895043]
[1736471406477,15.09175897,185.95,185.86,1.6018]
[1736471406777,15.09175897,185.95,185.87,2.6901]
[1736471406778,2.6894,185.93,185.87,2.6901]
[1736471406977,12.40275897,185.95,185.87,2.6901]
[1736471407177,14.03185897,185.95,185.82,19.00372703]
[1736471407379,17.13315897,185.95,185.82,19.00372703]
[1736471408083,2.6896,185.91,185.86,2.6902]
[1736471408674,2.6893,185.93,185.88,2.69]
[1736471408875,17.13315897,185.95,185.82,19.00372703]
[1736471409785,2.6893,185.94,185.88,2.6899]
[1736471410482,17.13315897,185.95,185.82,19.00372703]
[1736471410884,17.13315897,185.95,185.83,5.5989536]
[1736471412080,12.40275897,185.95,185.91,2.6896]
[1736471412787,12.40275897,185.95,185.89,2.6897]
[1736471412986,12.40275897,185.95,185.83,5.5989536]
[1736471413281,15.09185897,185.95,185.83,5.5989536]
[1736471414287,15.09185897,185.95,185.82,19.00372703]
[1736471415089,2.6893,185.94,185.82,19.00372703]
[1736471415688,2.6893,185.93,185.88,2.69]
[1736471416989,12.40275897,185.95,185.88,2.69]
[1736471417190,2.6896,185.91,185.86,2.6902]
[1736471417582,12.40275897,185.92,185.86,2.6902]
[1736471417888,17.14275897,185.92,185.86,2.6902]
[1736471419086,2.6897,185.9,185.86,2.6902]
[1736471422383,17.14275897,185.92,185.82,6.60096806]
[1736471422590,12.40275897,185.89,185.83,2.6907]
[1736471422789,12.40275897,185.89,185.82,6.60096806]
[1736471423288,2.6903,185.87,185.82,9.29166806]
[1736471424184,2.69,185.88,185.84,2.6906]
[1736471424489,12.40275897,185.92,185.82,6.60096806]
[1736471424790,2.6898,185.9,185.85,2.6903]
[1736471425783,2.6898,185.9,185.86,2.6902]
[1736471425987,2.6896,185.91,185.79,41.88268847]
[1736471426182,12.40275897,185.92,185.79,41.88268847]
[1736471426389,15.09215897,185.92,185.87,2.69]
[1736471427290,2.6896,185.91,185.87,2.69]
[1736471427794,12.40275897,185.92,185.81,7.36998237]
[1736471428096,15.09215897,185.92,185.81,7.36998237]
[1736471428394,15.09215897,185.92,185.82,5.63681165]
[1736471428594,2.6896,185.91,185.87,2.69]
[1736471429496,1.5028,185.93,185.82,12.40275897]
[1736471430095,1.5028,185.93,185.89,2.6898]
[1736471431589,1.5028,185.93,185.9,2.6897]
[1736471432396,4.3063,185.94,185.9,2.6897]
[1736471432596,4.3063,185.94,185.91,5.65865676]
[1736471433193,4.3063,185.94,185.9,2.6897]
[1736471433396,8.00351206,185.93,185.9,2.6897]
[1736471434387,8.00351206,185.93,185.91,5.66879304]
[1736471434792,8.00351206,185.95,185.91,5.66879304]
[1736471434996,8.00351206,185.95,185.92,5.66879304]
[1736471435193,8.00351206,185.97,185.92,5.66879304]
[1736471435590,2.6883,186.0,185.85,10.49708237]
[1736471435591,8.00351206,186.01,185.94,8.00351206]
[1736471436799,8.00351206,186.01,185.95,5.66879304]
[1736471437097,10.69161206,186.01,185.96,2.6888]
[1736471437299,2.6881,186.01,185.96,8.35759304]
[1736471438098,2.6881,186.01,185.97,5.66879304]
[1736471438293,5.8234,186.02,185.97,8.35749304]
[1736471438495,1.549,186.02,185.97,5.66879304]
[1736471438796,12.49666054,186.03,185.98,5.66879304]
[1736471439389,12.49666054,186.03,185.99,2.6883]
[1736471439593,12.49666054,186.03,185.99,5.66879304]
[1736471440096,12.49666054,186.03,185.91,6.3689]
[1736471440496,3.0623,186.08,185.93,12.49666054]
[1736471440497,12.49666054,186.06,185.93,12.49666054]
[1736471440697,3.0623,186.08,185.96,12.49666054]
[1736471440892,5.7494,186.08,185.99,2.6883]
[1736471441108,3.0623,186.08,185.97,5.66726593]
[1736471441697,1.5634,186.08,186.03,2.6878]
[1736471442001,12.49666054,186.12,185.99,12.49666054]
[1736471442301,15.18316054,186.12,186.06,2.6873]
[1736471442900,15.18316054,186.12,186.0,5.66726593]
[1736471443094,12.49666054,186.12,186.0,5.66726593]
[1736471443301,12.49666054,186.15,186.02,12.49666054]
[1736471443492,12.49666054,186.15,186.11,2.6867]
[1736471443696,12.49666054,186.15,186.05,12.49666054]
[1736471443894,19.77766054,186.18,186.05,12.49666054]
[1736471444103,17.09196054,186.18,186.11,2.6865]
[1736471445199,2.6858,186.17,186.11,2.6865]
[1736471445407,2.6858,186.17,186.12,2.6865]
[1736471445808,17.09196054,186.18,186.12,2.6865]
[1736471446402,17.09196054,186.18,186.05,17.23666054]
[1736471446605,1.5143,186.18,186.08,12.49666054]
[1736471446910,12.49666054,186.21,186.11,12.49666054]
[1736471447207,12.49666054,186.21,186.16,2.6858]
[1736471447405,12.49666054,186.21,186.11,12.49666054]
[1736471448108,4.74,186.24,186.11,12.49666054]
[1736471448409,19.92156054,186.24,186.18,2.6856]
[1736471448607,12.49666054,186.21,186.12,1.6295]
[1736471448804,12.49666054,186.21,186.08,18.11562622]
[1736471449107,12.49666054,186.18,186.08,5.61896568]
[1736471449515,12.49666054,186.18,186.07,1.5812]
[1736471450104,12.49666054,186.18,186.14,2.6862]
[1736471450808,12.49666054,186.18,186.15,2.6861]
[1736471451710,9.5622,186.2,186.15,2.6861]
[1736471452207,12.2476,186.2,186.15,2.6861]
[1736471455509,12.49666054,186.18,186.06,8.2220407]
[1736471456309,12.49666054,186.15,186.06,6.5925407]
[1736471457111,2.6864,186.13,186.08,2.6871]
[1736471457410,4.72,186.13,186.06,6.5925407]
[1736471457605,4.8222,186.2,186.06,6.5925407]
[1736471457811,4.74,186.19,186.07,12.49666054]
[1736471458207,2.6857,186.18,186.07,12.49666054]
[1736471458914,14.10046054,186.2,186.07,12.49666054]
[1736471459116,14.10046054,186.2,186.07,14.07196054]
[1736471459413,14.10046054,186.2,186.16,2.6859]
[1736471460112,14.10046054,186.2,186.15,2.686]
[1736471460818,2.6855,186.19,186.07,14.07196054]
[1736471461017,14.10046054,186.2,186.07,14.07196054]
[1736471461205,3.1048,186.19,186.07,14.07196054]
[1736471462114,2.6858,186.17,186.12,2.6865]
[1736471463312,2.6858,186.17,186.13,2.6864]
[1736471463911,7.8248,186.19,186.14,2.6862]
[1736471464314,7.8248,186.19,186.07,14.07196054]
[1736471465109,21.4567,186.35,186.1,12.49666054]
[1736471465414,12.49666054,186.25,186.13,12.49666054]
[1736471465917,2.6848,186.24,186.2,2.6853]
[1736471466117,12.49666054,186.25,186.2,2.6853]
[1736471466318,12.49666054,186.25,186.13,12.49666054]
[1736471466519,2.6844,186.27,186.22,2.685]
[1736471467408,2.6841,186.29,186.24,2.6848]
[1736471468014,2.6841,186.29,186.16,12.49666054]
[1736471468015,2.6844,186.27,186.22,2.6849]
[1736471468418,2.6844,186.27,186.16,12.49666054]
[1736471468620,2.6842,186.29,186.23,2.6848]
[1736471469117,2.6842,186.29,186.16,12.49666054]
[1736471469118,4.74,186.29,186.16,12.49666054]
[1736471469317,4.74,186.29,186.21,2.6851]
[1736471469520,4.74,186.29,186.16,12.49666054]
[1736471470214,2.6845,186.26,186.16,12.49666054]
[1736471470615,2.6848,186.25,186.16,12.49666054]
[1736471471015,12.49666054,186.27,186.14,1.5447]
[1736471471219,4.74,186.29,186.14,1.5447]
[1736471471520,4.74,186.29,186.08,1.495]
[1736471471521,12.49666054,186.21,186.08,1.495]
[1736471471723,7.753,186.2,186.08,1.495]
[1736471471920,2.6858,186.17,186.13,2.6864]
[1736471472116,9.3004,186.2,186.08,1.495]
[1736471472515,2.6856,186.19,186.15,2.6861]
[1736471472717,2.6856,186.19,186.08,1.495]
[1736471473217,2.6856,186.19,186.13,2.6863]
[1736471474020,12.49666054,186.18,186.06,20.62970124]
[1736471474221,12.49666054,186.18,186.06,8.1330407]
[1736471475424,12.49666054,186.15,186.04,5.60285565]
[1736471475723,2.6864,186.13,186.08,2.6871]
[1736471475925,4.74,186.12,186.08,2.6871]
[1736471476425,7.4265,186.12,186.03,3.1396]
[1736471476718,7.4265,186.12,186.02,7.36998237]
[1736471477113,7.4265,186.12,186.05,2.6875]
[1736471477317,2.6868,186.1,186.01,56.14081489]
[1736471477622,17.23666054,186.12,186.06,2.6873]
[1736471477823,4.74,186.12,186.01,56.14081489]
[1736471478025,4.74,186.12,186.01,48.77083252]
[1736471478522,12.49666054,186.15,186.04,12.49666054]
[1736471478722,4.74,186.17,186.04,12.49666054]
[1736471479225,2.686,186.16,186.11,2.6866]
[1736471480023,2.686,186.16,186.06,5.62547565]
[1736471480823,2.686,186.16,186.07,5.62547565]
[1736471481328,2.686,186.16,186.1,2.6867]
[1736471481523,2.6864,186.13,186.08,5.62547565]
[1736471482130,2.6864,186.13,186.07,2.6872]
[1736471483128,12.49666054,186.16,186.11,2.6866]
[1736471484430,15.18266054,186.16,186.11,2.6866]
[1736471484830,15.18266054,186.16,186.04,12.49666054]
[1736471484831,2.6861,186.15,186.1,2.6868]
[1736471486026,2.6862,186.14,186.04,12.49666054]
[1736471486228,12.49666054,186.16,186.01,48.77083252]
[1736471486429,12.49666054,186.16,186.05,5.65663437]
[1736471486930,2.6865,186.12,186.07,2.6872]
[1736471487128,12.49666054,186.16,186.05,5.65663437]
[1736471487430,12.49666054,186.16,186.06,5.65663437]
[1736471487631,2.6864,186.13,186.08,2.6871]
[1736471487925,12.49666054,186.16,186.08,2.6871]
[1736471488125,12.49666054,186.13,186.01,48.77083252]
[1736471488327,2.6868,186.1,186.01,48.77083252]
[1736471488727,2.6868,186.1,186.02,5.66154072]
[1736471488935,1.5186,186.12,186.06,2.6874]
[1736471489237,2.6867,186.11,186.02,5.66154072]
[1736471489433,2.6867,186.11,186.01,48.77083252]
[1736471490336,2.6867,186.11,186.06,2.6873]
[1736471490536,12.49666054,186.16,186.04,12.49666054]
[1736471490934,12.49666054,186.16,186.01,48.77083252]
[1736471491134,12.49666054,186.13,186.05,5.65976788]
[1736471491739,12.49666054,186.13,186.01,48.77083252]
[1736471492235,12.49666054,186.13,186.02,5.65993573]
[1736471492531,2.6867,186.11,186.03,5.65993573]
[1736471493031,2.6863,186.14,186.09,2.6868]
[1736471493233,1.5186,186.19,186.07,12.49666054]
[1736471493437,1.5186,186.19,186.08,1.5778]
[1736471493740,1.5186,186.19,186.08,4.7209]
[1736471493933,1.5186,186.19,186.09,5.65412031]
[1736471494642,1.5186,186.19,186.1,5.65412031]
[1736471494940,1.5186,186.19,186.11,2.6866]
[1736471495139,1.5186,186.19,186.08,4.7209]
[1736471495341,2.686,186.16,186.08,4.7209]
[1736471495644,2.686,186.16,186.08,1.5778]
[1736471495939,2.6857,186.18,186.13,2.6863]
[1736471496339,14.01526054,186.19,186.09,5.65262786]
[1736471496538,2.6859,186.17,186.08,1.5778]
[1736471497742,2.6861,186.15,186.11,2.6866]
[1736471497935,12.49666054,186.16,186.04,1.6113]
[1736471498331,2.6864,186.13,186.04,1.6113]
[1736471498536,2.6864,186.13,186.05,5.6520526]
[1736471498743,12.49666054,186.16,186.05,5.6520526]
[1736471499042,14.01526054,186.19,186.09,2.6869]
[1736471500137,14.01526054,186.19,186.1,2.6867]
[1736471500538,2.6862,186.15,186.04,1.6113]
[1736471501243,2.6862,186.15,186.05,5.6532142]
[1736471502037,2.6862,186.15,186.06,5.6532142]
[1736471502236,2.6862,186.15,186.11,2.6866]
[1736471504242,1.5186,186.19,186.09,12.49666054]
[1736471504844,1.5186,186.19,186.15,2.686]
[1736471505141,15.18176054,186.22,186.09,12.49666054]
[1736471505346,17.23666054,186.25,186.12,12.49666054]
[1736471505543,12.49666054,186.25,186.2,2.6853]
[1736471507346,2.6848,186.24,186.2,2.6853]
[1736471510137,12.49666054,186.25,186.19,2.6855]
[1736471510341,2.685,186.23,186.19,2.6855]
[1736471510945,2.6854,186.2,186.15,8.32579381]
[1736471511149,2.6854,186.2,186.15,5.63979381]
[1736471511441,2.6854,186.2,186.11,3.1845]
[1736471511645,2.6854,186.2,186.12,5.64334555]
[1736471512041,2.6854,186.2,186.11,3.1845]
[1736471512247,12.49666054,186.22,186.11,3.1845]
[1736471512447,7.9214,186.26,186.11,1.5461]
[1736471512448,12.49666054,186.19,186.11,1.5461]
[1736471512752,4.72,186.18,186.08,1.6196]
[1736471513245,4.72,186.18,186.09,5.64835703]
[1736471513841,7.9574,186.18,186.06,12.49666054]
[1736471514649,7.9574,186.18,186.07,5.65267069]
[1736471515045,2.6862,186.15,186.1,2.6867]
[1736471518552,2.6868,186.1,186.05,2.6874]
[1736471518750,17.23666054,186.1,185.99,1.6565]
[1736471519151,17.23666054,186.1,186.0,5.66471414]
[1736471519152,2.6874,186.06,186.0,5.66471414]
[1736471519653,2.6874,186.06,185.99,1.6565]
[1736471520347,12.49666054,186.07,185.96,1.6255]
[1736471520750,12.49666054,186.04,185.92,3.192]
[1736471520955,7.5279,186.03,185.93,5.66499509]
[1736471521347,7.5279,186.03,185.94,5.66499509]
[1736471521544,7.5279,186.03,185.95,5.66499509]
[1736471522245,7.5279,186.03,185.97,2.6886]
[1736471523054,12.49666054,186.01,185.85,41.97659004]
[1736471523254,12.49666054,185.98,185.86,1.6082]
[1736471523648,1.5784,186.0,185.88,12.49666054]
[1736471524455,1.5784,186.0,185.93,2.6892]
[1736471524851,4.2667,186.0,185.93,2.6892]
[1736471525252,4.2667,186.0,185.96,2.6888]
[1736471525253,1.5784,186.0,185.96,2.6888]
[1736471526051,1.5784,186.0,185.91,12.49666054]
[1736471527146,1.5784,186.0,185.95,2.689]
[1736471527755,4.84,186.01,185.98,2.6885]
[1736471529058,2.6879,186.03,185.98,2.6885]
[1736471529352,17.33666054,186.04,185.99,2.6884]
[1736471529552,17.33666054,186.07,185.94,12.49666054]
[1736471529749,4.84,186.07,185.97,12.49666054]
[1736471530156,4.84,186.09,185.97,12.49666054]
[1736471530552,4.84,186.09,186.05,2.6874]
[1736471531556,4.84,186.09,186.06,2.6873]
[1736471532356,2.6867,186.11,186.06,2.6873]
[1736471532554,12.49666054,186.16,186.09,2.687]
[1736471532759,12.49666054,186.16,186.04,1.5048]
[1736471533159,12.49666054,186.16,186.09,2.6868]
[1736471534861,2.6861,186.15,186.1,2.6868]
[1736471536055,2.6862,186.14,186.09,2.6869]
[1736471536361,12.49666054,186.16,186.04,7.11731584]
[1736471536764,12.49666054,186.16,186.04,7.11684961]
[1736471536963,2.6861,186.15,186.04,7.11684961]
[1736471537165,14.07036054,186.19,186.06,12.49666054]
[1736471537464,2.6857,186.18,186.09,2.6868]
[1736471537664,14.07036054,186.19,186.06,12.49666054]
[1736471538265,2.6861,186.16,186.1,2.6867]
[1736471538456,12.49666054,186.16,186.06,12.49666054]
[1736471538965,2.6862,186.15,186.1,2.6868]
[1736471539365,14.07036054,186.19,186.06,12.49666054]
[1736471539765,2.6858,186.17,186.06,12.49666054]
[1736471540066,14.07036054,186.19,186.06,12.49666054]
[1736471540467,16.75596054,186.19,186.06,12.49666054]